bitfinex-derivatives/quotes_ETHF0:USTF0_20250410
["timestamp","ask_amount","ask_price","bid_price","bid_amount"]
[1744304652965,5.5697,1510.1,1510.0,1.3254]
[1744304653656,1.3254,1510.0,1509.9,0.00994135]
[1744304653858,8.05473368,1510.0,1509.9,0.00994135]
[1744304654057,12.40573368,1510.0,1509.2,11.2418]
[1744304654261,6.72933368,1509.9,1509.3,5.7353]
[1744304654560,1.32606,1509.3,1509.1,4.53395]
[1744304654758,5.6764,1509.2,1508.9,5.7353]
[1744304655161,8.05554368,1509.1,1508.9,1.33623135]
[1744304655466,5.6764,1509.0,1508.9,1.33631135]
[1744304655667,13.73201368,1509.0,1508.9,0.00994135]
[1744304655964,12.40573368,1509.0,1508.9,1.33631135]
[1744304656862,13.73201368,1509.0,1508.9,0.00994135]
[1744304657060,21.93981368,1509.0,1508.9,0.00994135]
[1744304657768,12.40573368,1509.0,1508.9,1.33631135]
[1744304658166,13.73201368,1509.0,1508.9,0.00994135]
[1744304658556,29.46101368,1509.0,1508.9,0.00994135]
[1744304658763,1.32672,1508.5,1508.4,15.02635318]
[1744304658968,3.2078,1508.8,1508.4,15.02635318]
[1744304659274,1.32671,1508.6,1508.4,16.35312318]
[1744304659568,5.8729,1508.5,1508.4,16.35312318]
[1744304659970,13.92895368,1508.5,1508.4,15.02635318]
[1744304660372,29.34295368,1508.5,1508.4,9.70229453]
[1744304660567,1.32689,1508.3,1508.2,20.03513757]
[1744304660773,17.61368,1508.5,1508.2,20.03513757]
[1744304660978,1.32689,1508.3,1508.2,20.03513757]
[1744304661179,8.06612503,1508.4,1508.2,21.36205757]
[1744304661380,6.72933368,1508.3,1508.2,21.36211757]
[1744304661672,6.73927503,1508.4,1508.3,1.32689]
[1744304662476,6.73927503,1508.4,1507.9,9.31004]
[1744304662678,6.72933368,1508.3,1508.2,1.32698]
[1744304663877,12.44483368,1508.3,1508.2,1.32698]
[1744304664571,13.77172368,1508.3,1507.9,8.91038]
[1744304664777,9.93713368,1508.2,1508.0,42.1271]
[1744304664986,9.93713368,1508.2,1507.7,6.52631]
[1744304664987,7.04264,1508.1,1507.9,1.32717]
[1744304665277,7.04264,1508.1,1507.7,3.31851]
[1744304665278,13.77194368,1508.1,1508.0,1.32716]
[1744304665473,6.72933368,1508.0,1507.5,22.03319493]
[1744304665784,6.72933368,1508.0,1507.8,1.32726]
[1744304665785,1.32724,1507.9,1507.8,1.32726]
[1744304665987,6.72933368,1507.9,1507.8,1.32726]
[1744304666183,6.72933368,1507.9,1507.7,40.8]
[1744304666490,6.72933368,1507.8,1507.7,42.12742]
[1744304666686,6.52528,1508.2,1507.4,17.02828]
[1744304666687,3.2078,1508.0,1507.6,3.31878]
[1744304666889,3.2078,1508.0,1507.9,1.32724]
[1744304667283,3.2078,1508.2,1508.1,1.32707]
[1744304667582,6.72933368,1508.2,1508.1,1.32707]
[1744304667788,10.42794135,1508.4,1508.3,1.32689]
[1744304667789,0.00994135,1508.4,1508.3,1.32689]
[1744304668086,6.73927503,1508.4,1508.3,1.32689]
[1744304668782,8.06614503,1508.4,1508.3,1.32689]
[1744304668984,6.73927503,1508.4,1508.1,3.31752]
[1744304669183,0.00994135,1508.4,1508.3,1.32689]
[1744304669378,0.00994135,1508.4,1508.3,4.53469]
[1744304669686,1.35e-06,1508.4,1508.3,9.53469]
[1744304670090,6.72933503,1508.4,1508.3,1.32689]
[1744304671081,1.35e-06,1508.4,1508.3,9.53469]
[1744304672689,1.35e-06,1508.4,1508.3,1.32689]
[1744304672887,6.72933503,1508.4,1508.3,1.32689]
[1744304674192,6.72933503,1508.4,1508.2,0.00994135]
[1744304674386,1.35e-06,1508.4,1508.3,1.32689]
[1744304674689,1.35e-06,1508.4,1508.3,45.33469]
[1744304674886,1.35e-06,1508.4,1508.3,57.13999]
[1744304675092,1.35e-06,1508.4,1508.3,63.13199]
[1744304675586,13.43448084,1509.3,1509.2,1.3261]
[1744304675780,8.05545368,1509.2,1508.7,9.84016]
[1744304675987,6.72933368,1509.2,1509.1,1.32619]
[1744304676287,7.71907697,1509.4,1509.1,42.12619]
[1744304676494,14.44841065,1509.4,1509.3,1.32601]
[1744304676691,7.71907697,1509.4,1509.3,1.32601]
[1744304677285,14.44841065,1509.4,1509.3,1.32601]
[1744304677480,0.00994135,1509.5,1509.4,1.32593]
[1744304677685,1.35e-06,1509.5,1509.4,7.77023]
[1744304677989,1.35e-06,1509.5,1509.4,12.77023]
[1744304678185,8.82811219,1509.6,1509.5,1.32584]
[1744304678388,8.82811219,1509.6,1509.5,10.97794]
[1744304678586,4.11646916,1509.6,1509.5,15.97794]
[1744304678789,9.16e-06,1509.6,1509.5,15.97794]
[1744304679284,9.16e-06,1509.6,1509.5,7.77014]
[1744304679592,14.93714284,1509.6,1509.2,0.00994135]
[1744304679788,6.72933368,1509.5,1509.4,1.32587]
[1744304680288,1.32596,1509.4,1509.2,1.33602135]
[1744304680488,6.72933368,1509.4,1509.3,1.32596]
[1744304680696,6.72933368,1509.3,1509.2,1.33604135]
[1744304681384,13.14843368,1509.3,1509.2,1.33604135]
[1744304681690,13.14843368,1509.3,1509.2,0.00994135]
[1744304681893,19.47444368,1509.3,1509.2,0.00994135]
[1744304682083,13.14843368,1509.3,1509.2,0.00994135]
[1744304682288,31.25049368,1509.3,1508.7,1.32647]
[1744304682488,3.2078,1509.0,1508.5,3.31678]
[1744304682682,10.04462368,1509.2,1508.7,3.31627]
[1744304682683,9.93713368,1509.2,1508.7,3.31627]
[1744304682981,8.05558368,1509.1,1508.9,1.32632]
[1744304683391,6.72933368,1509.0,1508.5,10.24278]
[1744304683597,1.3264,1508.9,1508.8,0.00994135]
[1744304683895,6.72933368,1508.9,1508.8,1.33639135]
[1744304684994,0.00994135,1509.2,1509.1,1.32619]
[1744304685193,6.72933368,1509.1,1509.0,1.32621]
[1744304685391,9.93713368,1509.1,1508.8,0.00994135]
[1744304685591,1.32637,1508.9,1508.8,0.00994135]
[1744304685794,13.51553368,1509.0,1508.9,1.32637]
[1744304685995,6.7862,1509.0,1508.9,1.32637]
[1744304686194,13.51553368,1509.0,1508.9,1.32637]
[1744304687201,0.00994135,1509.2,1509.1,1.32619]
[1744304687699,6.73927503,1509.2,1509.1,42.12619]
[1744304688799,6.73927503,1509.2,1508.8,9.64207135]
[1744304689105,14.54172368,1509.1,1509.0,1.32628]
[1744304689407,13.21553368,1509.1,1508.8,0.00994135]
[1744304689596,6.72933368,1509.0,1508.9,1.32629]
[1744304689796,13.48083368,1509.0,1508.9,42.12629]
[1744304690602,18.48083368,1509.0,1508.9,1.32637]
[1744304690895,18.48083368,1509.0,1508.8,1.33635135]
[1744304691100,6.72933368,1508.9,1508.8,1.33639135]
[1744304691297,11.26350368,1508.9,1508.8,0.00994135]
[1744304691599,16.26350368,1508.9,1508.8,0.00994135]
[1744304691800,23.01500368,1508.9,1508.8,0.00994135]
[1744304692600,21.68863368,1508.9,1508.8,1.33639135]
[1744304692803,16.68863368,1508.9,1508.8,1.33639135]
[1744304693004,18.01500368,1508.9,1508.8,0.00994135]
[1744304693193,16.28567,1508.9,1508.8,0.00994135]
[1744304693389,23.01500368,1508.9,1508.8,0.00994135]
[1744304693993,18.01500368,1508.9,1508.8,0.00994135]
[1744304694190,23.01500368,1508.9,1508.8,0.00994135]
[1744304694992,1.3266,1508.7,1508.4,3.31701]
[1744304695197,3.2078,1508.7,1508.6,1.32654]
[1744304695392,8.2078,1508.7,1507.6,3.3231741]
[1744304695598,3.2078,1508.1,1507.6,6.63752]
[1744304695902,3.2078,1508.1,1507.6,3.31876]
[1744304696103,1.32721,1508.0,1507.8,1.32733]
[1744304696306,0.00994135,1508.0,1507.9,1.32724]
[1744304696501,1.33712135,1508.0,1507.9,1.32724]
[1744304696706,0.00994135,1508.0,1507.9,1.32724]
[1744304697201,0.00994135,1508.0,1507.5,3.3189]
[1744304697409,3.2078,1507.9,1507.4,3.31915]
[1744304697600,4.53507,1507.9,1507.8,1.32733]
[1744304697800,1.32734,1507.8,1507.7,1.32737]
[1744304698104,3.2078,1507.9,1507.6,1.32746]
[1744304698306,4.5351,1507.9,1507.7,1.3274]
[1744304698504,3.2078,1507.9,1507.5,3.31892]
[1744304698705,3.2078,1507.9,1507.4,7.83029]
[1744304698905,3.2078,1507.9,1507.8,1.32733]
[1744304699403,0.00994135,1508.0,1507.9,1.32724]
[1744304700005,0.00994135,1508.0,1507.8,1.32727]
[1744304700206,0.00994135,1508.0,1507.9,1.32724]
[1744304700610,0.00994135,1508.0,1507.7,10.18356]
[1744304700611,8.21774135,1508.0,1507.6,1.32746]
[1744304700903,3.2078,1507.8,1507.1,12.857]
[1744304701106,3.2078,1507.2,1506.9,20.03513757]
[1744304701310,1.32781,1507.3,1506.9,23.35544757]
[1744304701603,1.32797,1507.1,1506.9,1.32805]
[1744304701809,1.32797,1507.1,1506.7,14.9202]
[1744304701810,1.32817,1506.9,1506.7,1.32824]
[1744304702112,3.2078,1506.8,1506.5,47.3444]
[1744304702305,3.2078,1506.6,1506.2,21.36382757]
[1744304702514,3.2078,1506.4,1506.2,21.36380757]
[1744304702905,3.2078,1506.4,1506.3,40.8]
[1744304703211,3.2078,1506.4,1506.2,21.36380757]
[1744304703212,1.32865,1506.3,1506.2,20.03513757]
[1744304703899,1.32883,1506.1,1506.0,25.04392197]
[1744304704203,14.00663,1506.1,1506.0,21.16405954]
[1744304704402,19.00663,1506.1,1506.0,21.16405954]
[1744304704805,17.6778,1506.1,1506.0,21.16405954]
[1744304705010,19.00663,1506.1,1506.0,21.16405954]
[1744304705404,1.32918,1505.7,1505.6,30.05270636]
[1744304705713,4.53695,1505.8,1505.6,30.05270636]
[1744304705910,1.32918,1505.7,1505.6,30.05270636]
[1744304706110,3.2078,1505.8,1505.6,30.05270636]
[1744304706301,3.2078,1505.8,1505.7,1.32918]
[1744304706914,12.6778,1506.1,1505.7,5.0]
[1744304707115,12.6778,1506.1,1505.7,6.4325]
[1744304707313,12.6778,1506.1,1505.6,30.05270636]
[1744304707615,3.2078,1505.7,1505.6,30.05270636]
[1744304707813,1.32974,1505.1,1504.8,5.0642]
[1744304708004,3.2078,1504.9,1504.4,8.1006]
[1744304708208,3.2078,1504.9,1504.8,1.32998]
[1744304708515,3.2078,1505.1,1505.0,1.3298]
[1744304708721,12.6858,1505.3,1505.2,1.32963]
[1744304709107,12.6858,1505.3,1504.7,10.28926]
[1744304709315,3.2078,1505.1,1505.0,1.32972]
[1744304709718,4.53758,1505.1,1504.9,1.32985]
[1744304709920,4.53758,1505.1,1504.9,1.32988]
[1744304709921,3.2078,1505.1,1504.9,1.32988]
[1744304710112,3.2078,1505.1,1505.0,1.3298]
[1744304710607,3.2078,1505.2,1504.8,10.172]
[1744304710807,3.2078,1505.0,1504.9,6.9642]
[1744304711014,3.2078,1505.0,1504.5,40.8]
[1744304711218,3.2078,1505.0,1504.6,7.0712]
[1744304711517,3.2078,1504.8,1504.0,3.2078]
[1744304711717,3.2078,1504.6,1504.1,7.0712]
[1744304711912,3.2078,1504.4,1504.2,40.8]
[1744304712320,1.33082,1503.9,1503.5,1.3311]
[1744304712617,3.2078,1503.9,1503.5,7.0712]
[1744304712813,4.53861,1503.9,1503.5,8.40228]
[1744304713014,6.9553,1503.8,1503.3,28.63996636]
[1744304713320,9.482,1503.9,1503.7,1.33088]
[1744304713522,0.00997539,1503.7,1503.4,7.0712]
[1744304713722,0.00997539,1503.7,1503.5,1.33109]
[1744304713918,0.00997539,1503.7,1503.6,7.0712]
[1744304714223,0.00997539,1503.7,1503.2,0.01361236]
[1744304714415,8.44995539,1503.7,1503.3,6.8229]
[1744304714616,3.2078,1503.6,1503.3,6.8229]
[1744304714815,3.2078,1503.6,1503.4,40.8]
[1744304715313,0.00997539,1503.7,1503.6,1.33104]
[1744304715518,3.21777539,1503.7,1503.5,11.9827]
[1744304715820,0.00997539,1503.7,1503.5,6.8229]
[1744304716012,0.00997539,1503.7,1503.6,40.8]
[1744304716620,12.70777539,1503.7,1503.2,3.22141236]
[1744304716814,0.00997539,1503.7,1503.6,1.33104]
[1744304717019,0.00997539,1503.7,1503.6,48.95394]
[1744304717316,3.2078,1504.2,1503.6,40.8]
[1744304717518,3.2078,1504.2,1503.7,6.53519]
[1744304717720,3.2078,1504.2,1504.1,1.3306]
[1744304718322,3.2078,1504.4,1504.3,1.33042]
[1744304718824,3.2078,1504.4,1504.3,42.13042]
[1744304719723,3.2078,1504.4,1504.3,47.13042]
[1744304720124,0.00997539,1504.5,1504.4,1.33033]
[1744304720322,3.2078,1505.0,1504.4,7.0127]
[1744304720617,3.2078,1505.0,1504.8,1.32994]
[1744304720819,3.2078,1505.2,1505.0,1.32979]
[1744304721023,4.53743,1505.2,1504.9,8.34252]
[1744304721220,3.2078,1505.0,1504.5,5.1387]
[1744304721417,4.53785,1504.8,1504.5,1.33022]
[1744304721725,0.00997539,1504.9,1504.6,7.02267539]
[1744304722028,0.00997539,1504.9,1504.8,1.32998]
[1744304722520,0.00997539,1504.9,1504.6,7.02267539]
[1744304722718,0.00997539,1504.9,1504.8,1.32998]
[1744304723422,0.00997539,1504.9,1504.6,7.02267539]
[1744304723720,1.32998,1504.8,1504.7,6.7123]
[1744304723924,1.33007,1504.7,1504.6,0.00997539]
[1744304724420,10.3269,1504.8,1504.6,1.34010539]
[1744304724622,1.33007,1504.7,1504.6,0.00997539]
[1744304724821,10.3269,1504.8,1504.6,0.00997539]
[1744304725019,1.33007,1504.7,1504.6,0.00997539]
[1744304725223,11.65695,1504.8,1504.6,42.14011539]
[1744304725420,10.3269,1504.8,1504.6,0.00997539]
[1744304725624,1.33007,1504.7,1504.6,0.00997539]
[1744304725821,8.44917,1504.7,1504.6,5.39e-06]
[1744304726024,3.32628,1504.2,1503.6,1.33102]
[1744304726214,1.3309,1503.8,1503.7,6.7123]
[1744304726524,1.33097,1503.7,1503.6,40.8]
[1744304726720,10.1262,1503.7,1503.6,40.8]
[1744304726919,3.2078,1503.7,1503.6,42.13104]
[1744304727117,4.53875,1503.7,1503.6,40.8]
[1744304727320,1.33104,1503.6,1503.5,5.39e-06]
[1744304727625,3.32841,1503.3,1502.5,5.19135658]
[1744304727826,3.2078,1502.9,1502.5,11.3957]
[1744304728021,3.2078,1502.9,1502.7,1.3318]
[1744304728215,3.2078,1502.9,1502.5,11.3957]
[1744304728418,0.40067004,1503.7,1502.8,3.2078]
[1744304728624,3.2078,1503.9,1503.2,3.2078]
[1744304728823,3.2078,1504.0,1503.3,11.7163]
[1744304729015,0.00997539,1503.4,1503.3,13.04761]
[1744304729520,0.00997539,1503.4,1503.3,18.04761]
[1744304729723,3.2078,1503.6,1503.3,13.04757]
[1744304729923,3.2078,1503.6,1503.4,7.0396]
[1744304730120,1.33102,1503.7,1503.4,7.0396]
[1744304730319,3.2078,1503.8,1503.4,7.0396]
[1744304730524,4.6551,1503.7,1503.6,1.33102]
[1744304730728,4.6551,1503.7,1503.5,1.3311]
[1744304731025,6.3176,1503.7,1503.6,7.0396]
[1744304731324,6.3176,1503.7,1503.5,0.00997539]
[1744304731325,1.33104,1503.6,1503.5,0.00997539]
[1744304731521,1.33146,1503.2,1502.7,3.2078]
[1744304731719,3.2078,1503.2,1502.8,7.0396]
[1744304732227,4.53937,1503.0,1502.8,7.0396]
[1744304732426,4.53942,1503.0,1502.5,3.2078]
[1744304732625,6.665,1502.9,1502.5,6.7502]
[1744304732827,4.5394,1503.0,1502.5,6.7502]
[1744304733131,0.00997539,1503.1,1502.7,3.2078]
[1744304733434,0.00997539,1503.1,1503.0,1.33157]
[1744304733922,0.00997539,1503.1,1503.0,9.53937]
[1744304734123,0.00997539,1503.1,1503.0,6.33157]
[1744304734721,0.00997539,1503.1,1503.0,50.33937]
[1744304735029,0.33167,1503.4,1503.1,1.33148]
[1744304735222,3.2078,1503.8,1503.6,1.33104]
[1744304735428,3.2078,1504.0,1503.6,1.33104]
[1744304735626,3.2078,1504.0,1503.9,1.33078]
[1744304735926,3.2078,1504.3,1504.2,1.33051]
[1744304736126,0.00997539,1504.1,1504.0,1.33069]
[1744304736329,3.21777539,1504.1,1503.8,1.34078539]
[1744304736524,3.21777539,1504.1,1503.8,0.00997539]
[1744304736723,1.33075,1504.0,1503.8,0.00997539]
[1744304737038,4.53858,1503.9,1503.8,0.00997539]
[1744304737233,12.88377539,1504.1,1503.8,0.00997539]
[1744304737533,0.00997539,1504.1,1504.0,1.33069]
[1744304738224,8.21777539,1504.1,1503.8,0.00997539]
[1744304738424,4.53858,1503.9,1503.8,0.00997539]
[1744304739026,9.53858,1503.9,1503.8,0.00997539]
[1744304739231,16.43228,1503.9,1503.8,0.00997539]
[1744304739433,16.43228,1503.9,1503.8,5.39e-06]
[1744304740335,11.43228,1503.9,1503.8,5.39e-06]
[1744304741030,1.3313,1503.4,1503.1,1.33144]
[1744304741326,1.33168,1502.9,1502.7,0.42318596]
[1744304741629,3.2078,1502.8,1502.7,1.33184]
[1744304741832,1.33198,1502.6,1502.3,8.0548]
[1744304742035,1.33198,1502.6,1502.4,1.33208]
[1744304742036,1.33195,1502.6,1502.4,1.33208]
[1744304742229,1.34192539,1502.6,1502.4,1.33208]
[1744304742436,1.33202,1502.5,1502.3,9.38693]
[1744304742632,0.00997539,1502.6,1502.5,1.33202]
[1744304742826,3.21777539,1502.6,1502.5,1.33202]
[1744304743237,4.54970539,1502.6,1502.4,1.33205]
[1744304743427,3.21777539,1502.6,1502.5,1.33202]
[1744304743632,0.00997539,1502.6,1502.5,1.33202]
[1744304744432,0.00997539,1502.6,1502.5,9.53982]
[1744304744633,3.2078,1503.4,1502.5,8.2078]
[1744304744837,3.3249,1503.4,1503.1,6.5365]
[1744304745135,3.3249,1503.4,1503.3,1.33131]
[1744304745824,3.3249,1503.4,1503.3,40.8]
[1744304746024,4.65612,1503.4,1503.3,40.8]
[1744304746230,11.31752,1503.4,1503.3,40.8]
[1744304746836,9.9863,1503.4,1503.3,40.8]
[1744304747142,9.9863,1503.4,1503.3,42.13131]
[1744304747340,3.3249,1503.4,1503.3,42.13131]
[1744304747741,0.00997539,1503.5,1503.4,1.33122]
[1744304748437,0.00997539,1503.5,1503.2,6.54613539]
[1744304748438,3.21777539,1503.5,1503.2,0.00997539]
[1744304748637,4.53911,1503.3,1503.2,5.39e-06]
[1744304748833,3.32852,1503.2,1502.2,3.3305]
[1744304749141,1.33189,1502.7,1502.5,1.33199]
[1744304749334,3.2078,1502.6,1502.3,40.8]
[1744304749541,10.3781,1502.6,1502.3,40.8]
[1744304749741,1.33246,1502.0,1501.9,5.039]
[1744304749946,3.2078,1502.0,1501.5,3.33226]
[1744304750245,0.00997539,1502.1,1502.0,1.33246]
[1744304750440,3.2078,1502.6,1502.5,1.33202]
[1744304750637,3.2078,1502.8,1502.3,3.33039]
[1744304750939,3.2078,1502.8,1502.4,3.33027]
[1744304751142,3.2078,1503.0,1502.9,1.33166]
[1744304751339,9.668,1503.1,1503.0,1.33157]
[1744304751540,3.2078,1503.2,1502.7,3.32952]
[1744304751736,0.00997539,1503.1,1503.0,1.33157]
[1744304752138,10.2834,1503.7,1503.2,3.3284]
[1744304752445,10.2834,1503.7,1503.5,1.33112]
[1744304752837,10.2834,1503.7,1503.5,1.33111]
[1744304753139,10.2834,1503.7,1503.5,1.33109]
[1744304753346,10.2834,1503.7,1503.5,1.33107]
[1744304753543,1.33106,1503.6,1503.1,6.53637]
[1744304753740,7.62245086,1503.8,1503.7,1.33095]
[1744304754041,0.00997539,1503.8,1503.4,6.53577]
[1744304754242,3.21777539,1503.8,1503.6,0.00997539]
[1744304754550,1.67237539,1503.8,1503.7,1.33095]
[1744304754743,1.67237539,1503.8,1503.7,42.13095]
[1744304754938,4.88017539,1503.8,1503.7,40.8]
[1744304755140,6.21103539,1503.8,1503.7,40.8]
[1744304755334,1.33095,1503.7,1503.6,0.00997539]
[1744304755745,13.29085,1503.7,1503.6,0.00997539]
[1744304755941,1.33144,1503.2,1502.9,1.33164]
[1744304756141,3.2078,1503.1,1503.0,1.33157]
[1744304756342,12.8218,1503.3,1503.1,1.33145]
[1744304756546,6.9599,1503.4,1503.0,44.12888]
[1744304756744,10.3607,1503.6,1503.1,3.3287]
[1744304756936,11.69176,1503.6,1503.0,44.12888]
[1744304757251,4.88017539,1503.8,1503.3,3.3282]
[1744304757544,6.21106539,1503.8,1503.3,6.53607]
[1744304757749,6.21106539,1503.8,1503.6,1.33102]
[1744304757951,1.33098,1503.7,1503.5,1.33106]
[1744304758249,3.2078,1503.6,1503.5,1.33113]
[1744304758650,3.2078,1503.6,1503.4,1.33115]
[1744304758838,3.2078,1503.6,1503.2,0.00997539]
[1744304759046,1.67237539,1503.8,1503.7,1.33095]
[1744304759349,0.00997539,1503.8,1503.7,1.33095]
[1744304759554,0.00997539,1503.8,1503.6,1.33097]
[1744304759847,3.2078,1503.7,1503.2,0.00997539]
[1744304760046,11.90832,1503.7,1503.2,3.33846539]
[1744304760252,4.53899,1503.5,1503.2,0.00997539]
[1744304760447,3.2078,1503.5,1503.2,0.00997539]
[1744304760748,3.32863,1503.2,1502.5,3.33002]
[1744304760952,3.2078,1502.6,1502.2,12.7613]
[1744304761151,1.3321,1502.4,1502.3,40.8]
[1744304761351,10.5773,1502.5,1501.8,16.42043263]
[1744304761556,4.54005,1502.3,1502.0,9.88123263]
[1744304761754,1.33228,1502.2,1502.0,11.21366263]
[1744304761953,3.21777539,1502.3,1502.0,9.88123263]
[1744304762454,0.00997539,1502.3,1502.0,9.88123263]
[1744304762757,0.00997539,1502.3,1502.2,1.33228]
[1744304763357,0.00997539,1502.3,1502.0,9.88123263]
[1744304763559,3.2078,1502.2,1502.0,9.88123263]
[1744304763753,10.2889,1502.2,1502.0,9.88123263]
[1744304764063,1.33237,1502.1,1502.0,9.88123263]
[1744304764360,1.33264,1501.8,1501.7,6.97895146]
[1744304764567,1.33281,1501.6,1501.5,24.29336374]
[1744304764860,4.54061,1501.6,1501.5,24.29336374]
[1744304765166,9.54061,1501.6,1501.5,24.29336374]
[1744304765356,106.3198,1501.6,1500.6,0.01601642]
[1744304765565,1.33356,1500.8,1500.6,8.00730642]
[1744304765862,3.2078,1501.2,1501.1,1.33326]
[1744304766046,3.2078,1501.2,1501.1,0.03147689]
[1744304766252,3.2078,1501.6,1501.1,8.36450689]
[1744304766452,3.2078,1501.9,1501.3,3.33271]
[1744304766655,3.2078,1502.1,1501.5,3.33226]
[1744304766963,3.2078,1502.1,1502.0,1.33246]
[1744304767260,1.33215,1502.4,1502.0,0.03147689]
[1744304767564,4.54006,1502.3,1502.2,0.0530115]
[1744304767763,3.2078,1502.3,1502.2,0.0530115]
[1744304767957,12.8278,1502.3,1502.2,0.0530115]
[1744304768153,3.2078,1502.3,1502.2,0.0530115]
[1744304768356,3.2078,1502.3,1502.2,8.0428915]
[1744304768657,12.8278,1502.5,1502.4,1.3321]
[1744304768855,12.8278,1502.5,1502.2,6.7421215]
[1744304769056,3.2078,1502.3,1502.2,6.7421215]
[1744304769261,4.53999,1502.3,1502.2,1.5e-06]
[1744304769455,1.33246,1502.0,1501.9,0.00997539]
[1744304769650,14.1287485,1502.0,1501.9,0.00997539]
[1744304769854,1.3328,1501.7,1501.0,3.33337]
[1744304770061,1.3328,1501.7,1500.9,10.2203]
[1744304770062,3.2078,1501.5,1501.4,1.33299]
[1744304770355,3.2078,1501.7,1501.4,9.99002461]
[1744304770557,3.2078,1501.9,1501.7,1.33269]
[1744304770755,5.852,1502.3,1501.7,1.33269]
[1744304770756,3.2078,1502.1,1501.8,6.6576]
[1744304770953,3.2078,1502.3,1501.9,3.33138]
[1744304771159,0.00997539,1502.1,1501.9,6.6576]
[1744304771362,4.55014539,1502.1,1502.0,13.7519]
[1744304771560,4.55014539,1502.1,1501.6,4.80477539]
[1744304771561,1.33272,1501.8,1501.6,4.80477539]
[1744304771759,9.63097539,1502.1,1501.7,15.14746642]
[1744304771972,4.54044,1501.8,1501.7,0.06284642]
[1744304772153,1.33272,1501.7,1501.6,0.00997539]
[1744304772352,14.17662,1501.7,1501.6,5.39e-06]
[1744304772561,1.33317,1501.2,1501.1,7.2608]
[1744304772763,4.54097,1501.2,1501.1,7.29222963]
[1744304772966,4.54097,1501.2,1501.1,0.03142963]
[1744304773156,7.76387,1501.2,1501.1,0.03142963]
[1744304773559,1.33361,1500.7,1500.6,0.01601642]
[1744304773754,4.54141,1500.7,1500.6,0.01601642]
[1744304773970,9.54141,1500.7,1500.6,6.42e-06]
[1744304774267,12.76431,1500.7,1500.6,6.42e-06]
[1744304775268,7.76431,1500.7,1500.6,6.42e-06]
[1744304775459,3.2078,1501.0,1500.6,11.65760642]
[1744304775659,0.00997539,1501.3,1500.6,6.42e-06]
[1744304775660,3.2078,1500.8,1500.6,6.42e-06]
[1744304775864,3.2078,1500.8,1500.7,6.6576]
[1744304776062,12.85687539,1501.3,1501.0,1.33332]
[1744304776266,3.2078,1501.1,1501.0,1.33335]
[1744304776564,12.84177539,1501.3,1501.2,1.33317]
[1744304776764,12.84177539,1501.3,1500.9,6.6576]
[1744304776956,3.2078,1501.0,1500.9,6.6576]
[1744304777162,9.63397539,1501.3,1501.1,1.33326]
[1744304777359,9.63397539,1501.3,1501.2,7.99077]
[1744304777562,0.00997539,1501.3,1501.2,1.33317]
[1744304777758,0.00997539,1501.3,1501.2,7.99077]
[1744304777963,0.00997539,1501.3,1501.2,12.99077]
[1744304778466,0.00997539,1501.3,1501.2,22.98079461]
[1744304778864,0.00997539,1501.3,1501.2,17.98079461]
[1744304779067,0.00997539,1501.3,1501.2,16.19857]
[1744304779263,14.25256,1501.7,1501.3,6.6576]
[1744304779568,12.9198,1501.7,1501.3,6.6576]
[1744304779769,3.2078,1501.5,1501.4,6.6576]
[1744304779968,3.2078,1501.5,1501.0,5.019]
[1744304780170,1.33315,1501.3,1501.1,6.6576]
[1744304780374,6.431,1501.5,1501.1,6.66757539]
[1744304780375,0.00997539,1501.4,1501.1,6.66757539]
[1744304780576,9.712,1501.3,1501.1,6.66757539]
[1744304780772,12.9198,1501.3,1501.1,6.66757539]
[1744304780967,0.00997539,1501.4,1501.2,6.6576]
[1744304781174,0.00997539,1501.4,1501.3,4.54088]
[1744304781364,0.00997539,1501.4,1501.3,6.6576]
[1744304781570,3.21777539,1501.4,1501.1,0.00997539]
[1744304781773,3.21777539,1501.4,1501.2,6.6576]
[1744304782080,1.33317,1501.2,1501.1,0.00997539]
[1744304782266,6.44097539,1501.4,1501.1,6.66757539]
[1744304782466,6.44097539,1501.4,1501.1,8.00077539]
[1744304782669,8.10607539,1501.4,1501.1,6.66757539]
[1744304782870,1.33308,1501.3,1501.2,6.6576]
[1744304783065,4.88287539,1501.4,1501.2,6.6576]
[1744304783266,1.67507539,1501.4,1501.2,7.99074]
[1744304783474,1.33308,1501.3,1501.2,6.6576]
[1744304783671,4.88287539,1501.4,1501.1,0.00997539]
[1744304783864,4.54097,1501.2,1501.1,0.00997539]
[1744304784069,3.2078,1501.2,1501.1,0.00997539]
[1744304784270,19.25297,1501.2,1501.1,0.00997539]
[1744304784476,14.25297,1501.2,1501.1,0.00997539]
[1744304784679,14.25297,1501.2,1501.1,6.66757539]
[1744304785180,12.9198,1501.2,1501.1,8.00083539]
[1744304785379,14.25297,1501.2,1501.1,6.66757539]
[1744304785877,12.9198,1501.2,1501.1,8.00083539]
[1744304786077,14.25297,1501.2,1501.1,6.66757539]
[1744304786276,14.25297,1501.2,1501.1,0.00997539]
[1744304786576,14.25297,1501.2,1501.1,6.66757539]
[1744304786779,6.33737539,1501.4,1501.1,6.66757539]
[1744304786975,6.33737539,1501.4,1501.3,1.33308]
[1744304787280,4.67227539,1501.4,1501.3,1.33308]
[1744304787466,4.67227539,1501.4,1501.3,12.99068]
[1744304787672,6.64937502,1501.9,1501.3,14.713]
[1744304787982,10.2008771,1502.1,1502.0,1.33246]
[1744304788275,12.86849366,1502.3,1502.2,1.33228]
[1744304788481,1.33237,1502.1,1502.0,40.8]
[1744304788774,3.2078,1502.2,1502.0,40.8]
[1744304789077,13.48910464,1502.2,1502.0,40.8]
[1744304789280,14.05889847,1502.2,1502.0,40.8]
[1744304789473,15.39117847,1502.2,1502.0,42.13242]
[1744304789675,15.39117847,1502.2,1502.0,40.8]
[1744304789676,1.33237,1502.1,1502.0,40.8]
[1744304789874,10.28130464,1502.2,1502.1,1.33237]
[1744304790074,10.85109847,1502.2,1502.0,40.8]
[1744304790275,1.33237,1502.1,1502.0,40.8]
[1744304790680,1.90216383,1502.1,1502.0,40.8]
[1744304790877,6.90216383,1502.1,1502.0,40.8]